{"text_format":"3","workbook":"xlsx","n_sheets":2,"sheets":["РОБОТА З КНИГОЮ","ЖУРНАЛ УСПІШНОСТІ"],"not_rendered":{"defined_names":7},"read":"whole","date_system":"1900"}

{"sheet":"РОБОТА З КНИГОЮ","index":0,"n_rows":10,"n_cols":2,"rows_kept":10}
[null,"ІНСТРУКЦІЇ"]
[null,"Скористайтеся аркушем \"КЛАСНИЙ ЖУРНАЛ\", щоб обчислювати оцінки. За кожне завдання дається певна кількість балів. "]
[null,"Інструкції.   Обов’язково зберігайте резервні копії оцінок."]
[null,"1. Заповніть назву навчального закладу, відомості про заняття, імена учнів або студентів і їхні ідентифікатори (необов’язково).   "]
[null,"2. Внесіть у таблицю оцінок і середніх балів за всі курси зміни відповідно до системи оцінювання, яку ви використовуєте."]
[null,"3. Заповніть назви завдань або тестів (наприклад, \"Тест 1\"), починаючи з клітинки H8, а також введіть бали, які даються за кожне із таких завдань. "]
[null,"4. Внесіть оцінки кожного з учнів або слухачів за кожне завдання або тест. Стовпці \"Середнє\", \"Оцінка\", \"Літера оцінки\" та \"Середній бал за всі курси\" обчислюються автоматично, але за потреби ви можете внести власні значення. Щоб поставити додаткові залікові бали, просто введіть за завдання бал більше за максимальний можливий указаний бал."]
[null,"Скористайтеся командою \"Область друку\" в меню \"Макет сторінки\", якщо потрібно змінити вміст, що друкується."]
[null,"Оцінки, що виставляються за бали, обчислюються за звичайною відсотковою шкалою відповідно до загальної кількості балів, указаних у рядках 8 і 9.  Укажіть для кожного завдання або тесту відповідні бали, а потім укажіть, яка оцінка відповідає якому відсотку.  Ви також можете вручну змінювати клітинки в стовпці \"Оцінка\"."]
[null,"Введіть кожне завдання або тест і відповідні бали в клітинки від H8 до X9."]

{"sheet":"ЖУРНАЛ УСПІШНОСТІ","index":1,"n_rows":24,"n_cols":24,"rows_kept":24,"merged":[[1,1,2,6],[3,1,3,6],[4,1,6,6],[7,4,7,6],[8,4,8,6],[10,4,10,6],[11,4,11,6],[20,1,20,2],[20,3,20,4],[21,1,21,2],[21,3,21,4],[22,1,22,2],[22,3,22,4],[23,1,23,2],[23,3,23,4]]}
[null,"НАЗВА НАВЧАЛЬНОГО ЗАКЛАДУ"]
[null,"Ім’я викладача"]
[{"$nulls":7},"Оцінка",{"$f":"I4*ЗагальніБали","v":118},120,126,134,140,{"v":145.6666666666666,"d":"146"},154,160,166,174,180,186,194]
[null,"Заняття/проект",{"$nulls":5},"%",{"v":0.59,"d":"59%"},{"v":0.6,"d":"60%"},{"v":0.63,"d":"63%"},{"v":0.67,"d":"67%"},{"v":0.7,"d":"70%"},{"v":0.728333333333333,"d":"73%"},{"v":0.77,"d":"77%"},{"v":0.8,"d":"80%"},{"v":0.83,"d":"83%"},{"v":0.87,"d":"87%"},{"v":0.9,"d":"90%"},{"v":0.93,"d":"93%"},{"v":0.97,"d":"97%"}]
[null,"Рік/семетр/чверть",{"$nulls":5},"Літера оцінки","1","2-","2","2+","3-","3","3+","4-","B","4+","5-","А","5+"]
[{"$nulls":7},"Середній бал за всі курси",0,0.67,1,1.33,1.67,2,2.33,2.67,3,3.33,3.67,4,4]
[]
[{"$nulls":4},"Назва завдання або тесту",null,null,"ДЗ1","ДЗ2","1 КВ."]
[{"$nulls":4},"Загальний доступний бал",null,null,50,50,100]
[]
[{"$nulls":4},"Загальна кількість завдань і тестів:",null,null,{"$f":"COUNTA(H8:AH8)","v":3}]
[{"$nulls":4},"Максимальний можливий бал:",null,null,{"$f":"SUM(H9:AH9)","v":200}]
[]
[null,"Ім’я учня","Ідентифікатор учня або студента","Середнє","Оцінка","Літера оцінки","Середній бал за всі курси","Стовпець6","Стовпець7","Стовпець8","Стовпець9","Стовпець10","Стовпець11","Стовпець12","Стовпець13","Стовпець14","Стовпець15","Стовпець16","Стовпець17","Стовпець18","Стовпець19","Стовпець20","Стовпець21","Стовпець22"]
[null,"Номер учня або студента 1",null,{"$f":"IFERROR(IF(COUNT(Оцінки[[#This Row],[Стовпець6]:[Стовпець22]])=0,\"\",SUM(Оцінки[[#This Row],[Стовпець6]:[Стовпець22]])/ЗагальніБали),\"\")","v":{"v":0.91,"d":"91.0%"}},{"$f":"IF(COUNT(Оцінки[[#This Row],[Стовпець6]:[Стовпець22]])=0,\"\",SUM(Оцінки[[#This Row],[Стовпець6]:[Стовпець22]]))","v":182},{"$f":"IFERROR(IF(Оцінки[[#This Row],[Середнє]]<>\"\",HLOOKUP(Оцінки[[#This Row],[Середнє]]*ЗагальніБали,ТаблицяОцінок,3),\"\"),0)","v":"5-"},{"$f":"IFERROR(IF(Оцінки[[#This Row],[Середнє]]<>\"\",HLOOKUP(Оцінки[[#This Row],[Середнє]]*ЗагальніБали,ТаблицяОцінок,4),\"\"),0)","v":3.67},45,45,92]
[null,"Номер учня або студента 2",null,{"$f":"IFERROR(IF(COUNT(Оцінки[[#This Row],[Стовпець6]:[Стовпець22]])=0,\"\",SUM(Оцінки[[#This Row],[Стовпець6]:[Стовпець22]])/ЗагальніБали),\"\")","v":{"v":1,"d":"100.0%"}},{"$f":"IF(COUNT(Оцінки[[#This Row],[Стовпець6]:[Стовпець22]])=0,\"\",SUM(Оцінки[[#This Row],[Стовпець6]:[Стовпець22]]))","v":200},{"$f":"IFERROR(IF(Оцінки[[#This Row],[Середнє]]<>\"\",HLOOKUP(Оцінки[[#This Row],[Середнє]]*ЗагальніБали,ТаблицяОцінок,3),\"\"),0)","v":"5+"},{"$f":"IFERROR(IF(Оцінки[[#This Row],[Середнє]]<>\"\",HLOOKUP(Оцінки[[#This Row],[Середнє]]*ЗагальніБали,ТаблицяОцінок,4),\"\"),0)","v":{"v":4,"d":"4.00"}},50,50,100]
[{"$nulls":3},{"$f":"IFERROR(IF(COUNT(Оцінки[[#This Row],[Стовпець6]:[Стовпець22]])=0,\"\",SUM(Оцінки[[#This Row],[Стовпець6]:[Стовпець22]])/ЗагальніБали),\"\")","v":""},{"$f":"IF(COUNT(Оцінки[[#This Row],[Стовпець6]:[Стовпець22]])=0,\"\",SUM(Оцінки[[#This Row],[Стовпець6]:[Стовпець22]]))","v":""},{"$f":"IFERROR(IF(Оцінки[[#This Row],[Середнє]]<>\"\",HLOOKUP(Оцінки[[#This Row],[Середнє]]*ЗагальніБали,ТаблицяОцінок,3),\"\"),0)","v":""},{"$f":"IFERROR(IF(Оцінки[[#This Row],[Середнє]]<>\"\",HLOOKUP(Оцінки[[#This Row],[Середнє]]*ЗагальніБали,ТаблицяОцінок,4),\"\"),0)","v":""}]
[{"$nulls":3},{"$f":"IFERROR(IF(COUNT(Оцінки[[#This Row],[Стовпець6]:[Стовпець22]])=0,\"\",SUM(Оцінки[[#This Row],[Стовпець6]:[Стовпець22]])/ЗагальніБали),\"\")","v":""},{"$f":"IF(COUNT(Оцінки[[#This Row],[Стовпець6]:[Стовпець22]])=0,\"\",SUM(Оцінки[[#This Row],[Стовпець6]:[Стовпець22]]))","v":""},{"$f":"IFERROR(IF(Оцінки[[#This Row],[Середнє]]<>\"\",HLOOKUP(Оцінки[[#This Row],[Середнє]]*ЗагальніБали,ТаблицяОцінок,3),\"\"),0)","v":""},{"$f":"IFERROR(IF(Оцінки[[#This Row],[Середнє]]<>\"\",HLOOKUP(Оцінки[[#This Row],[Середнє]]*ЗагальніБали,ТаблицяОцінок,4),\"\"),0)","v":""}]
[{"$nulls":3},{"$f":"IFERROR(IF(COUNT(Оцінки[[#This Row],[Стовпець6]:[Стовпець22]])=0,\"\",SUM(Оцінки[[#This Row],[Стовпець6]:[Стовпець22]])/ЗагальніБали),\"\")","v":""},{"$f":"IF(COUNT(Оцінки[[#This Row],[Стовпець6]:[Стовпець22]])=0,\"\",SUM(Оцінки[[#This Row],[Стовпець6]:[Стовпець22]]))","v":""},{"$f":"IFERROR(IF(Оцінки[[#This Row],[Середнє]]<>\"\",HLOOKUP(Оцінки[[#This Row],[Середнє]]*ЗагальніБали,ТаблицяОцінок,3),\"\"),0)","v":""},{"$f":"IFERROR(IF(Оцінки[[#This Row],[Середнє]]<>\"\",HLOOKUP(Оцінки[[#This Row],[Середнє]]*ЗагальніБали,ТаблицяОцінок,4),\"\"),0)","v":""}]
[]
[null,"Зведення заняття",null,"Середнє",null,"Літера оцінки","Середній бал за всі курси","","","","","","","","","","",""]
[null," Середнє",null,{"$f":"IFERROR(AVERAGE(Оцінки[[#All],[Середнє]]),0)","v":{"v":0.9550000000000001,"d":"95.5%"}},null,{"$f":"IFERROR(HLOOKUP(D22*ЗагальніБали,ТаблицяОцінок,3),\"\")","v":"А"},{"$f":"IFERROR(AVERAGE(Оцінки[[#All],[Середній бал за всі курси]]),0)","v":{"v":3.835,"d":"3.84"}},"","","","","","","","","","","","","","","","",""]
[null," Найвища оцінка",null,{"$f":"IFERROR(MAX(Оцінки[[#All],[Середнє]]),0)","v":{"v":1,"d":"100.0%"}},null,{"$f":"IFERROR(HLOOKUP(D23*ЗагальніБали,ТаблицяОцінок,3),\"\")","v":"5+"},{"$f":"IFERROR(MAX(Оцінки[[#All],[Середній бал за всі курси]]),0)","v":{"v":4,"d":"4.00"}},"","","","","","","","","","","","","","","","",""]
[null," Найнижча оцінка",null,{"$f":"IFERROR(MIN(Оцінки[[#All],[Середнє]]),0)","v":{"v":0.91,"d":"91.0%"}},null,{"$f":"IFERROR(HLOOKUP(D24*ЗагальніБали,ТаблицяОцінок,3),\"\")","v":"5-"},{"$f":"IFERROR(MIN(Оцінки[[#All],[Середній бал за всі курси]]),0)","v":3.67},"","","","","","","","","","","","","","","","",""]